fUSD/lending_fUSD_20260521
["ID","MTS","AMOUNT","RATE_DAILY","PERIOD"]
[422733877,1779340110000,-517.36790593,0.00039873,120]
[422733874,1779340110000,-500.0,0.00039873,120]
[422733875,1779340110000,-496.74202932,0.00039873,120]
[422733872,1779340110000,-201.74083475,0.00039873,120]
[422733873,1779340110000,-500.0,0.00039873,120]
[422733878,1779340110000,-349.93862183,0.00039873,120]
[422733871,1779340110000,-319.71641392,0.00039873,120]
[422733868,1779340110000,-500.0,0.00039873,120]
[422733869,1779340110000,-458.25357391,0.00039873,120]
[422733866,1779340110000,-227.79771987,0.00039873,120]
[422733867,1779340110000,-449.26842415,0.00039873,120]
[422733865,1779340110000,-500.0,0.00039873,120]
[422733864,1779340110000,-349.46596594,0.00039873,120]
[422733870,1779340110000,-587.29769458,0.00039873,120]
[422733891,1779340111000,-500.0,0.00039873,120]
[422733889,1779340111000,-500.0,0.00039873,120]
[422733888,1779340111000,-1261.82156659,0.00039873,120]
[422733887,1779340111000,-500.0,0.00039873,120]
[422733886,1779340111000,-623.82627967,0.00039873,120]
[422733882,1779340111000,-500.0,0.00039873,120]
[422733885,1779340111000,-325.59718109,0.00039873,120]
[422733883,1779340111000,-500.0,0.00039873,120]
[422733881,1779340111000,-161.91775728,0.00039873,120]
[422733879,1779340111000,-500.0,0.00039873,120]
[422733880,1779340111000,-175.05513184,0.00039873,120]
[422733884,1779340111000,-405.0114556,0.00039873,120]
[422733890,1779340111000,-500.0,0.00039873,120]
[422733894,1779340111000,-180.87399467,0.00039873,120]
[422733893,1779340111000,-500.0,0.00039873,120]
[422733892,1779340111000,-500.0,0.00039873,120]
[422733906,1779340111000,-205.54003744,0.00039873,120]
[422733904,1779340111000,-403.51665276,0.00039873,120]
[422733905,1779340111000,-358.41503807,0.00039873,120]
[422733901,1779340111000,-541.79287805,0.00039873,120]
[422733902,1779340111000,-416.08132966,0.00039873,120]
[422733903,1779340111000,-197.33360871,0.00039873,120]
[422733900,1779340111000,-335.12439261,0.00039873,120]
[422733898,1779340111000,-292.75026224,0.00039873,120]
[422733897,1779340111000,-204.66046495,0.00039873,120]
[422733896,1779340111000,-319.43,0.00039873,120]
[422733895,1779340111000,-500.0,0.00039873,120]
[422733899,1779340111000,-309.12457012,0.00039873,120]
[422733915,1779340112000,-500.0,0.00039873,120]
[422733918,1779340112000,-338.74086371,0.00039873,120]
[422733917,1779340112000,-550.09680039,0.00039873,120]
[422733916,1779340112000,-580.71431525,0.00039873,120]
[422733914,1779340112000,-500.0,0.00039873,120]
[422733919,1779340112000,-296.4503861,0.00039873,120]
[422733910,1779340112000,-378.52553724,0.00039873,120]
[422733911,1779340112000,-500.0,0.00039873,120]
[422733907,1779340112000,-380.98105598,0.00039873,120]
[422733909,1779340112000,-184.13797217,0.00039873,120]
[422733908,1779340112000,-500.0,0.00039873,120]
[422733912,1779340112000,-500.0,0.00039873,120]
[422733920,1779340112000,-303.40769464,0.00039873,120]
[422733913,1779340112000,-500.0,0.00039873,120]
[422733922,1779340112000,-327.68760243,0.00039873,120]
[422733921,1779340112000,-186.34589086,0.00039873,120]
[422733933,1779340112000,-231.9255459,0.00039873,120]
[422733932,1779340112000,-366.9700435,0.00039873,120]
[422733930,1779340112000,-234.53533125,0.00039873,120]
[422733929,1779340112000,-525.04,0.00039873,120]
[422733928,1779340112000,-500.0,0.00039873,120]
[422733931,1779340112000,-344.04359859,0.00039873,120]
[422733927,1779340112000,-500.0,0.00039873,120]
[422733934,1779340112000,-331.48744112,0.00039873,120]
[422733926,1779340112000,-500.0,0.00039873,120]
[422733924,1779340112000,-414.5932154,0.00039873,120]
[422733923,1779340112000,-170.07369426,0.00039873,120]
[422733925,1779340112000,-500.0,0.00039873,120]
[422733944,1779340113000,-503.49374026,0.00039873,120]
[422733950,1779340113000,-196.14609,0.00039873,120]
[422733949,1779340113000,-261.3110635,0.00039873,120]
[422733947,1779340113000,-521.26294383,0.00039873,120]
[422733948,1779340113000,-222.50672645,0.00039873,120]
[422733945,1779340113000,-241.69519322,0.00039873,120]
[422733946,1779340113000,-500.0,0.00039873,120]
[422733943,1779340113000,-500.0,0.00039873,120]
[422733935,1779340113000,-173.00856198,0.00039873,120]
[422733942,1779340113000,-371.71436158,0.00039873,120]
[422733939,1779340113000,-277.85386832,0.00039873,120]
[422733940,1779340113000,-237.01540987,0.00039873,120]
[422733938,1779340113000,-236.37034876,0.00039873,120]
[422733937,1779340113000,-423.66929352,0.00039873,120]
[422733953,1779340113000,-209.89219396,0.00039873,120]
[422733936,1779340113000,-194.29220908,0.00039873,120]
[422733941,1779340113000,-240.01572761,0.00039873,120]
[422733952,1779340113000,-279.07896092,0.00039873,120]
[422733951,1779340113000,-385.98934449,0.00039873,120]
[422733954,1779340113000,-500.0,0.00039873,120]
[422733972,1779340113000,-600.24835807,0.00039873,120]
[422733955,1779340113000,-268.50388833,0.00039873,120]
[422733969,1779340113000,-500.0,0.00039873,120]
[422733971,1779340113000,-500.74851058,0.00039873,120]
[422733967,1779340113000,-500.0,0.00039873,120]
[422733968,1779340113000,-500.0,0.00039873,120]
[422733965,1779340113000,-171.81587854,0.00039873,120]
[422733966,1779340113000,-264.67292326,0.00039873,120]
[422733962,1779340113000,-194.57421468,0.00039873,120]
[422733970,1779340113000,-500.0,0.00039873,120]
[422733963,1779340113000,-258.82085032,0.00039873,120]
[422733960,1779340113000,-244.4131224,0.00039873,120]
[422733961,1779340113000,-166.60352917,0.00039873,120]
[422733958,1779340113000,-500.0,0.00039873,120]
[422733959,1779340113000,-508.16122295,0.00039873,120]
[422733956,1779340113000,-517.0986844,0.00039873,120]
[422733957,1779340113000,-224.71657385,0.00039873,120]
[422733964,1779340113000,-405.84458714,0.00039873,120]
[422733988,1779340114000,-283.48553059,0.00039873,120]
[422733987,1779340114000,-311.67576581,0.00039873,120]
[422733985,1779340114000,-202.38599567,0.00039873,120]
[422733986,1779340114000,-315.04071996,0.00039873,120]
[422733984,1779340114000,-584.35191687,0.00039873,120]
[422733983,1779340114000,-500.0,0.00039873,120]
[422733981,1779340114000,-500.0,0.00039873,120]
[422733979,1779340114000,-500.0,0.00039873,120]
[422733980,1779340114000,-503.28076817,0.00039873,120]
[422733978,1779340114000,-500.0,0.00039873,120]
[422733977,1779340114000,-500.0,0.00039873,120]
[422733976,1779340114000,-378.85799819,0.00039873,120]
[422733973,1779340114000,-249.79829314,0.00039873,120]
[422733974,1779340114000,-204.74056519,0.00039873,120]
[422733990,1779340114000,-500.0,0.00039873,120]
[422733982,1779340114000,-500.0,0.00039873,120]
[422733989,1779340114000,-303.82805373,0.00039873,120]
[422733975,1779340114000,-228.36296413,0.00039873,120]
[422733992,1779340114000,-244.85949224,0.00039873,120]
[422733991,1779340114000,-500.0,0.00039873,120]
[422734007,1779340114000,-500.0,0.00039873,120]
[422734006,1779340114000,-500.0,0.00039873,120]
[422734004,1779340114000,-500.0,0.00039873,120]
[422734003,1779340114000,-433.46983182,0.00039873,120]
[422734005,1779340114000,-500.0,0.00039873,120]
[422734000,1779340114000,-386.51725151,0.00039873,120]
[422734002,1779340114000,-268.15234378,0.00039873,120]
[422734008,1779340114000,-544.72208442,0.00039873,120]
[422733999,1779340114000,-171.47255054,0.00039873,120]
[422733997,1779340114000,-218.39051447,0.00039873,120]
[422733998,1779340114000,-363.57432095,0.00039873,120]
[422733996,1779340114000,-579.15518942,0.00039873,120]
[422733995,1779340114000,-500.0,0.00039873,120]
[422733994,1779340114000,-500.0,0.00039873,120]
[422733993,1779340114000,-500.0,0.00039873,120]
[422734001,1779340114000,-417.29538295,0.00039873,120]
[422734021,1779340115000,-500.0,0.00039873,120]
[422734020,1779340115000,-500.0,0.00039873,120]
[422734018,1779340115000,-500.0,0.00039873,120]
[422734019,1779340115000,-500.0,0.00039873,120]
[422734017,1779340115000,-500.0,0.00039873,120]
[422734016,1779340115000,-183.94142799,0.00039873,120]
[422734013,1779340115000,-500.0,0.00039873,120]
[422734015,1779340115000,-525.61364257,0.00039873,120]
[422734012,1779340115000,-500.0,0.00039873,120]
[422734010,1779340115000,-269.11291835,0.00039873,120]
[422734011,1779340115000,-500.0,0.00039873,120]
[422734009,1779340115000,-231.32173919,0.00039873,120]
[422734023,1779340115000,-385.5680543,0.00039873,120]
[422734014,1779340115000,-500.0,0.00039873,120]
[422734022,1779340115000,-176.66099593,0.00039873,120]
[422734024,1779340115000,-307.55268774,0.00039873,120]
[422734025,1779340115000,-270.86929307,0.00039873,120]
[422734039,1779340115000,-500.0,0.00039873,120]
[422734040,1779340115000,-500.0,0.00039873,120]
[422734035,1779340115000,-295.36330556,0.00039873,120]
[422734037,1779340115000,-214.55248702,0.00039873,120]
[422734036,1779340115000,-191.6299827,0.00039873,120]
[422734033,1779340115000,-267.13257045,0.00039873,120]
[422734034,1779340115000,-271.1697436,0.00039873,120]
[422734038,1779340115000,-500.0,0.00039873,120]
[422734030,1779340115000,-198.71022111,0.00039873,120]
[422734031,1779340115000,-351.67732595,0.00039873,120]
[422734029,1779340115000,-207.91572613,0.00039873,120]
[422734028,1779340115000,-202.42272828,0.00039873,120]
[422734027,1779340115000,-196.80768211,0.00039873,120]
[422734026,1779340115000,-199.18581581,0.00039873,120]
[422734032,1779340115000,-325.9019304,0.00039873,120]
[422734050,1779340116000,-386.16073168,0.00039873,120]
[422734055,1779340116000,-509.44503428,0.00039873,120]
[422734053,1779340116000,-166.11651884,0.00039873,120]
[422734054,1779340116000,-500.0,0.00039873,120]
[422734052,1779340116000,-312.63483763,0.00039873,120]
[422734051,1779340116000,-340.93435482,0.00039873,120]
[422734049,1779340116000,-411.86463949,0.00039873,120]
[422734043,1779340116000,-268.74386136,0.00039873,120]
[422734047,1779340116000,-218.08610515,0.00039873,120]
[422734048,1779340116000,-163.73746372,0.00039873,120]
[422734044,1779340116000,-500.0,0.00039873,120]
[422734045,1779340116000,-500.0,0.00039873,120]
[422734042,1779340116000,-500.0,0.00039873,120]
[422734057,1779340116000,-381.13573067,0.00039873,120]
[422734041,1779340116000,-500.0,0.00039873,120]
[422734046,1779340116000,-513.24942367,0.00039873,120]
[422734059,1779340116000,-291.96058689,0.00039873,120]
[422734075,1779340116000,-347.25028632,0.00039873,120]
[422734058,1779340116000,-316.08443048,0.00039873,120]
[422734056,1779340116000,-247.9780696,0.00039873,120]
[422734074,1779340116000,-174.02913512,0.00039873,120]
[422734076,1779340116000,-500.0,0.00039873,120]
[422734073,1779340116000,-500.0,0.00039873,120]
[422734071,1779340116000,-500.0,0.00039873,120]
[422734069,1779340116000,-500.0,0.00039873,120]
[422734067,1779340116000,-511.44362882,0.00039873,120]
[422734068,1779340116000,-500.0,0.00039873,120]
[422734072,1779340116000,-500.0,0.00039873,120]
[422734064,1779340116000,-500.0,0.00039873,120]
[422734066,1779340116000,-500.0,0.00039873,120]
[422734065,1779340116000,-500.0,0.00039873,120]
[422734063,1779340116000,-500.0,0.00039873,120]
[422734062,1779340116000,-500.0,0.00039873,120]
[422734061,1779340116000,-271.25738843,0.00039873,120]
[422734060,1779340116000,-213.48712852,0.00039873,120]
[422734070,1779340116000,-500.0,0.00039873,120]
[422734087,1779340117000,-312.95,0.00039873,120]
[422734092,1779340117000,-367.99126418,0.00039873,120]
[422734088,1779340117000,-341.40908741,0.00039873,120]
[422734090,1779340117000,-633.71227164,0.00039873,120]
[422734089,1779340117000,-364.3457917,0.00039873,120]
[422734086,1779340117000,-500.0,0.00039873,120]
[422734084,1779340117000,-500.0,0.00039873,120]
[422734091,1779340117000,-251.22891586,0.00039873,120]
[422734083,1779340117000,-500.0,0.00039873,120]
[422734082,1779340117000,-260.51425043,0.00039873,120]
[422734081,1779340117000,-312.19727221,0.00039873,120]
[422734080,1779340117000,-313.91828045,0.00039873,120]
[422734079,1779340117000,-276.34588866,0.00039873,120]
[422734078,1779340117000,-289.55311424,0.00039873,120]
[422734077,1779340117000,-210.45,0.00039873,120]
[422734085,1779340117000,-500.0,0.00039873,120]
[422734094,1779340117000,-368.76469832,0.00039873,120]
[422734106,1779340117000,-500.0,0.00039873,120]
[422734096,1779340117000,-229.31265301,0.00039873,120]
[422734093,1779340117000,-242.28795714,0.00039873,120]
[422734110,1779340117000,-205.62407448,0.00039873,120]
[422734108,1779340117000,-268.65362875,0.00039873,120]
[422734107,1779340117000,-503.75068882,0.00039873,120]
[422734109,1779340117000,-187.44821514,0.00039873,120]
[422734105,1779340117000,-500.0,0.00039873,120]
[422734104,1779340117000,-353.4303203,0.00039873,120]
[422734111,1779340117000,-421.09674206,0.00039873,120]
[422734103,1779340117000,-169.94256546,0.00039873,120]
[422734098,1779340117000,-319.35621611,0.00039873,120]
[422734101,1779340117000,-500.0,0.00039873,120]
[422734100,1779340117000,-500.0,0.00039873,120]
[422734099,1779340117000,-183.16947164,0.00039873,120]
[422734097,1779340117000,-365.89505896,0.00039873,120]
[422734095,1779340117000,-403.01647594,0.00039873,120]
[422734102,1779340117000,-512.75728952,0.00039873,120]
[422734124,1779340118000,-510.23153001,0.00039873,120]
[422734125,1779340118000,-500.0,0.00039873,120]
[422734123,1779340118000,-500.0,0.00039873,120]
[422734121,1779340118000,-188.69620769,0.00039873,120]
[422734122,1779340118000,-500.0,0.00039873,120]
[422734120,1779340118000,-183.88999643,0.00039873,120]
[422734116,1779340118000,-500.0,0.00039873,120]
[422734118,1779340118000,-500.0,0.00039873,120]
[422734117,1779340118000,-500.0,0.00039873,120]
[422734113,1779340118000,-355.08928503,0.00039873,120]
[422734115,1779340118000,-500.0,0.00039873,120]
[422734114,1779340118000,-173.10624436,0.00039873,120]
[422734126,1779340118000,-500.0,0.00039873,120]
[422734119,1779340118000,-193.97,0.00039873,120]
[422734127,1779340118000,-159.44,0.00039873,120]
[422734112,1779340118000,-210.13773968,0.00039873,120]
[422734129,1779340118000,-500.0,0.00039873,120]
[422734128,1779340118000,-587.49,0.00039873,120]
[422734143,1779340118000,-500.0,0.00039873,120]
[422734140,1779340118000,-500.0,0.00039873,120]
[422734141,1779340118000,-500.0,0.00039873,120]
[422734138,1779340118000,-500.0,0.00039873,120]
[422734139,1779340118000,-517.49885868,0.00039873,120]
[422734137,1779340118000,-500.0,0.00039873,120]
[422734142,1779340118000,-505.06151581,0.00039873,120]
[422734135,1779340118000,-183.20184461,0.00039873,120]
[422734134,1779340118000,-647.52,0.00039873,120]
[422734133,1779340118000,-500.0,0.00039873,120]
[422734131,1779340118000,-500.0,0.00039873,120]
[422734132,1779340118000,-500.0,0.00039873,120]
[422734130,1779340118000,-195.925814,0.00039873,120]
[422734136,1779340118000,-189.52357595,0.00039873,120]
[422734158,1779340119000,-195.38497367,0.00039873,120]
[422734155,1779340119000,-184.6885185,0.00039873,120]
[422734154,1779340119000,-258.04841828,0.00039873,120]
[422734153,1779340119000,-182.97554106,0.00039873,120]
[422734150,1779340119000,-500.0,0.00039873,120]
[422734152,1779340119000,-186.85271854,0.00039873,120]
[422734147,1779340119000,-3277.64662631,0.00039873,120]
[422734149,1779340119000,-500.0,0.00039873,120]
[422734148,1779340119000,-199.80878823,0.00039873,120]
[422734146,1779340119000,-173.82658031,0.00039873,120]
[422734144,1779340119000,-500.0,0.00039873,120]
[422734145,1779340119000,-502.08478844,0.00039873,120]
[422734151,1779340119000,-526.66134124,0.00039873,120]
[422734157,1779340119000,-2373.09208741,0.00039873,120]
[422734156,1779340119000,-500.0,0.00039873,120]
[422734160,1779340119000,-500.0,0.00039873,120]
[422734159,1779340119000,-270.01303722,0.00039873,120]
[422734172,1779340119000,-500.0,0.00039873,120]
[422734173,1779340119000,-500.0,0.00039873,120]
[422734171,1779340119000,-500.0,0.00039873,120]
[422734169,1779340119000,-560.95756,0.00039873,120]
[422734168,1779340119000,-500.0,0.00039873,120]
[422734170,1779340119000,-8000.0,0.00039873,120]
[422734165,1779340119000,-500.0,0.00039873,120]
[422734166,1779340119000,-500.0,0.00039873,120]
[422734164,1779340119000,-500.0,0.00039873,120]
[422734161,1779340119000,-500.0,0.00039873,120]
[422734163,1779340119000,-500.0,0.00039873,120]
[422734162,1779340119000,-500.0,0.00039873,120]
[422734167,1779340119000,-266.03375061,0.00039873,120]
[422734184,1779340120000,-500.0,0.00039873,120]
[422734187,1779340120000,-500.0,0.00039873,120]
[422734186,1779340120000,-500.0,0.00039873,120]
[422734188,1779340120000,-500.0,0.00039873,120]
[422734185,1779340120000,-500.0,0.00039873,120]
[422734183,1779340120000,-500.0,0.00039873,120]
[422734182,1779340120000,-500.0,0.00039873,120]
[422734174,1779340120000,-500.0,0.00039873,120]
[422734179,1779340120000,-500.0,0.00039873,120]
[422734180,1779340120000,-501.57542751,0.00039873,120]
[422734178,1779340120000,-2952.269619,0.00039873,120]
[422734177,1779340120000,-500.97940987,0.00039873,120]
[422734175,1779340120000,-500.0,0.00039873,120]
[422734176,1779340120000,-500.0,0.00039873,120]
[422734190,1779340120000,-500.0,0.00039873,120]
[422734181,1779340120000,-500.0,0.00039873,120]
[422734191,1779340120000,-500.0,0.00039873,120]
[422734205,1779340120000,-500.0,0.00039873,120]
[422734192,1779340120000,-500.0,0.00039873,120]
[422734208,1779340120000,-500.0,0.00039873,120]
[422734206,1779340120000,-500.6,0.00039873,120]
[422734204,1779340120000,-500.0,0.00039873,120]
[422734202,1779340120000,-468.27844005,0.00039873,120]
[422734203,1779340120000,-500.0,0.00039873,120]
[422734201,1779340120000,-500.0,0.00039873,120]
[422734200,1779340120000,-500.0,0.00039873,120]
[422734207,1779340120000,-500.0,0.00039873,120]
[422734197,1779340120000,-500.0,0.00039873,120]
[422734199,1779340120000,-500.0,0.00039873,120]
[422734193,1779340120000,-500.0,0.00039873,120]
[422734194,1779340120000,-500.0,0.00039873,120]
[422734189,1779340120000,-500.0,0.00039873,120]
[422734196,1779340120000,-500.0,0.00039873,120]
[422734198,1779340120000,-500.0,0.00039873,120]
[422734195,1779340120000,-500.0,0.00039873,120]
[422734223,1779340121000,-776.02,0.00039873,120]
[422734221,1779340121000,-776.02,0.00039873,120]
[422734219,1779340121000,-776.02,0.00039873,120]
[422734220,1779340121000,-776.02,0.00039873,120]
[422734217,1779340121000,-776.02,0.00039873,120]
[422734218,1779340121000,-776.02,0.00039873,120]
[422734216,1779340121000,-776.02,0.00039873,120]
[422734214,1779340121000,-776.02,0.00039873,120]
[422734213,1779340121000,-776.02,0.00039873,120]
[422734211,1779340121000,-776.02,0.00039873,120]
[422734210,1779340121000,-362.258555,0.00039873,120]
[422734209,1779340121000,-500.0,0.00039873,120]
[422734222,1779340121000,-776.02,0.00039873,120]
[422734215,1779340121000,-776.02,0.00039873,120]
[422734212,1779340121000,-776.02,0.00039873,120]
[422734224,1779340121000,-776.02,0.00039873,120]
[422734228,1779340121000,-776.02,0.00039873,120]
[422734225,1779340121000,-776.02,0.00039873,120]
[422734240,1779340121000,-500.0,0.00039873,120]
[422734237,1779340121000,-500.0,0.00039873,120]
[422734239,1779340121000,-500.0,0.00039873,120]
[422734238,1779340121000,-500.0,0.00039873,120]
[422734235,1779340121000,-500.0,0.00039873,120]
[422734232,1779340121000,-776.02,0.00039873,120]
[422734236,1779340121000,-500.0,0.00039873,120]
[422734234,1779340121000,-776.1257,0.00039873,120]
[422734231,1779340121000,-776.02,0.00039873,120]
[422734229,1779340121000,-776.02,0.00039873,120]
[422734230,1779340121000,-776.02,0.00039873,120]
[422734227,1779340121000,-776.02,0.00039873,120]
[422734226,1779340121000,-776.02,0.00039873,120]
[422734233,1779340121000,-776.02,0.00039873,120]
[422734251,1779340122000,-500.0,0.00039873,120]
[422734256,1779340122000,-155.46883575,0.00039873,120]
[422734253,1779340122000,-500.0,0.00039873,120]
[422734252,1779340122000,-500.0,0.00039873,120]
[422734250,1779340122000,-500.0,0.00039873,120]
[422734255,1779340122000,-500.0,0.00039873,120]
[422734248,1779340122000,-500.0,0.00039873,120]
[422734242,1779340122000,-426.00226,0.00039873,120]
[422734249,1779340122000,-500.0,0.00039873,120]
[422734246,1779340122000,-500.0,0.00039873,120]
[422734243,1779340122000,-3980.7275,0.00039873,120]
[422734244,1779340122000,-3980.7275,0.00039873,120]
[422734245,1779340122000,-3980.7275,0.00039873,120]
[422734241,1779340122000,-225.21647481,0.00039873,120]
[422734247,1779340122000,-500.0,0.00039873,120]
[422734254,1779340122000,-500.0,0.00039873,120]
[422734263,1779340122000,-1853.91,0.00039873,120]
[422734259,1779340122000,-1853.91,0.00039873,120]
[422734258,1779340122000,-1853.91,0.00039873,120]
[422734272,1779340122000,-1853.91,0.00039873,120]
[422734271,1779340122000,-1853.91,0.00039873,120]
[422734273,1779340122000,-1853.91,0.00039873,120]
[422734268,1779340122000,-1853.91,0.00039873,120]
[422734270,1779340122000,-1853.91,0.00039873,120]
[422734269,1779340122000,-1853.91,0.00039873,120]
[422734274,1779340122000,-1853.91,0.00039873,120]
[422734266,1779340122000,-1853.91,0.00039873,120]
[422734265,1779340122000,-1853.91,0.00039873,120]
[422734262,1779340122000,-1853.91,0.00039873,120]
[422734264,1779340122000,-1853.91,0.00039873,120]
[422734261,1779340122000,-1853.91,0.00039873,120]
[422734257,1779340122000,-1853.91,0.00039873,120]
[422734260,1779340122000,-1853.91,0.00039873,120]
[422734267,1779340122000,-1853.91,0.00039873,120]
[422734286,1779340123000,-1186.73,0.00039873,120]
[422734283,1779340123000,-1853.91,0.00039873,120]
[422734285,1779340123000,-1854.09,0.00039873,120]
[422734284,1779340123000,-1186.73,0.00039873,120]
[422734281,1779340123000,-1186.73,0.00039873,120]
[422734282,1779340123000,-1186.73,0.00039873,120]
[422734277,1779340123000,-1186.73,0.00039873,120]
[422734279,1779340123000,-1186.73,0.00039873,120]
[422734278,1779340123000,-1853.91,0.00039873,120]
[422734275,1779340123000,-1853.91,0.00039873,120]
[422734276,1779340123000,-1853.91,0.00039873,120]
[422734287,1779340123000,-1186.73,0.00039873,120]
[422734280,1779340123000,-1853.91,0.00039873,120]
[422734288,1779340123000,-1186.73,0.00039873,120]
[422734290,1779340123000,-1186.73,0.00039873,120]
[422734300,1779340123000,-1186.73,0.00039873,120]
[422734289,1779340123000,-1186.73,0.00039873,120]
[422734302,1779340123000,-1186.73,0.00039873,120]
[422734303,1779340123000,-1186.73,0.00039873,120]
[422734301,1779340123000,-1186.73,0.00039873,120]
[422734299,1779340123000,-1186.73,0.00039873,120]
[422734304,1779340123000,-1186.89511377,0.00039873,120]
[422734297,1779340123000,-1186.73,0.00039873,120]
[422734295,1779340123000,-1186.73,0.00039873,120]
[422734294,1779340123000,-1186.73,0.00039873,120]
[422734296,1779340123000,-1186.73,0.00039873,120]
[422734293,1779340123000,-1186.73,0.00039873,120]
[422734292,1779340123000,-1186.73,0.00039873,120]
[422734291,1779340123000,-1186.73,0.00039873,120]
[422734298,1779340123000,-1186.73,0.00039873,120]
[422734315,1779340124000,-3027.0,0.00039873,120]
[422734316,1779340124000,-3027.0,0.00039873,120]
[422734319,1779340124000,-3027.0,0.00039873,120]
[422734318,1779340124000,-3027.0,0.00039873,120]
[422734312,1779340124000,-3027.0,0.00039873,120]
[422734317,1779340124000,-3027.0,0.00039873,120]
[422734314,1779340124000,-3027.0,0.00039873,120]
[422734306,1779340124000,-3027.0,0.00039873,120]
[422734311,1779340124000,-3027.0,0.00039873,120]
[422734310,1779340124000,-3027.0,0.00039873,120]
[422734308,1779340124000,-3027.0,0.00039873,120]
[422734305,1779340124000,-3027.0,0.00039873,120]
[422734307,1779340124000,-3027.0,0.00039873,120]
[422734313,1779340124000,-3027.0,0.00039873,120]
[422734320,1779340124000,-3027.0,0.00039873,120]
[422734309,1779340124000,-3027.0,0.00039873,120]
[422734322,1779340124000,-3027.0,0.00039873,120]
[422734323,1779340124000,-3027.0,0.00039873,120]
[422734334,1779340124000,-2343.95,0.00039873,120]
[422734335,1779340124000,-2343.95,0.00039873,120]
[422734333,1779340124000,-2343.95,0.00039873,120]
[422734332,1779340124000,-2343.95,0.00039873,120]
[422734331,1779340124000,-2343.95,0.00039873,120]
[422734327,1779340124000,-3027.0,0.00039873,120]
[422734336,1779340124000,-2343.95,0.00039873,120]
[422734329,1779340124000,-2343.95,0.00039873,120]
[422734330,1779340124000,-2343.95,0.00039873,120]
[422734324,1779340124000,-3027.0,0.00039873,120]
[422734325,1779340124000,-3027.0,0.00039873,120]
[422734326,1779340124000,-3027.0,0.00039873,120]
[422734321,1779340124000,-3027.0,0.00039873,120]
[422734328,1779340124000,-3027.14159423,0.00039873,120]
[422734349,1779340125000,-2343.95,0.00039873,120]
[422734347,1779340125000,-2343.95,0.00039873,120]
[422734348,1779340125000,-2343.95,0.00039873,120]
[422734346,1779340125000,-2343.95,0.00039873,120]
[422734344,1779340125000,-2343.95,0.00039873,120]
[422734345,1779340125000,-2343.95,0.00039873,120]
[422734341,1779340125000,-2343.95,0.00039873,120]
[422734343,1779340125000,-2343.95,0.00039873,120]
[422734340,1779340125000,-2343.95,0.00039873,120]
[422734337,1779340125000,-2343.95,0.00039873,120]
[422734338,1779340125000,-2343.95,0.00039873,120]
[422734350,1779340125000,-2343.95,0.00039873,120]
[422734342,1779340125000,-2343.95,0.00039873,120]
[422734352,1779340125000,-2344.01,0.00039873,120]
[422734339,1779340125000,-2343.95,0.00039873,120]
[422734355,1779340125000,-2362.85,0.00039873,120]
[422734365,1779340125000,-2362.85,0.00039873,120]
[422734364,1779340125000,-2362.85,0.00039873,120]
[422734363,1779340125000,-2362.85,0.00039873,120]
[422734362,1779340125000,-2362.85,0.00039873,120]
[422734361,1779340125000,-2362.85,0.00039873,120]
[422734359,1779340125000,-2362.85,0.00039873,120]
[422734366,1779340125000,-1424.07,0.00039873,120]
[422734358,1779340125000,-2362.85,0.00039873,120]
[422734360,1779340125000,-2362.85,0.00039873,120]
[422734354,1779340125000,-2362.85,0.00039873,120]
[422734351,1779340125000,-2343.95,0.00039873,120]
[422734356,1779340125000,-2362.85,0.00039873,120]